fUSD/lending_fUSD_20260123
["ID","MTS","AMOUNT","RATE_DAILY","PERIOD"]
[403093088,1769151032110,-500.0,0.00015702,2]
[403093089,1769151032118,-500.0,0.00015703,2]
[403093090,1769151032127,-1249.98,0.00015756,2]
[403093091,1769151032135,-1249.98,0.00015756,2]
[403093092,1769151032143,-1249.98,0.00015756,2]
[403093093,1769151032152,-500.0,0.00015756,2]
[403093094,1769151032160,-500.0,0.00015757,2]
[403093095,1769151032169,-28278.79649309,0.00015766,2]
[403093096,1769151032192,-3773.8207,0.00015766,2]
[403093097,1769151032203,-745.6569597,0.00015766,2]
[403093098,1769151032214,-748.85940289,0.00015766,2]
[403093100,1769151032224,-2637.03630639,0.00015766,2]
[403093102,1769151032237,-8513.29893673,0.00015766,2]
[403093104,1769151032252,-454.55387908,0.00015766,2]
[403093105,1769151032263,-2008.0,0.00015766,2]
[403093106,1769151032274,-151237.18368554,0.00015766,2]
[403093107,1769151032293,-7327.60264883,0.00015766,2]
[403093108,1769151032304,-3055.63044215,0.00015766,2]
[403093109,1769151032318,-8786.69525022,0.00015766,2]
[403093110,1769151032345,-1467.80442726,0.00015766,2]
[403093118,1769151038223,-5137.86953541,0.00015766,2]
[403093119,1769151038234,-213221.35343271,0.00015766,2]
[403093120,1769151038244,-1972.44140625,0.00015767,2]
[403093121,1769151038253,-1330.944,0.00015767,2]
[403093122,1769151038263,-10000.01,0.00015767,2]
[403093123,1769151038272,-5500.0,0.000158,5]
[403093124,1769151038282,-500.0,0.00015811,2]
[403093125,1769151038291,-500.0,0.00015812,2]
[403093126,1769151038300,-151.0,0.00015822,2]
[403093127,1769151038309,-416.3,0.00015857,3]
[403093128,1769151038318,-1249.98,0.00015857,2]
[403093129,1769151038328,-166.66,0.00015863,2]
[403093130,1769151038337,-300.0,0.00015864,2]
[403093131,1769151038346,-500.0,0.00015866,2]
[403093132,1769151038356,-289.99008962,0.00015866,2]
[403093133,1769151038365,-911.971,0.00015866,2]
[403093134,1769151038374,-176.852,0.00015866,2]
[403093135,1769151038383,-500.0,0.00015866,2]
[403093136,1769151038392,-500.0,0.00015866,2]
[403093137,1769151038401,-500.0,0.00015866,2]
[403093138,1769151038410,-500.0,0.00015866,2]
[403093139,1769151038419,-500.0,0.00015866,2]
[403093140,1769151038428,-500.0,0.00015866,2]
[403093141,1769151038437,-500.0,0.00015866,2]
[403093142,1769151038447,-500.0,0.00015866,2]
[403093143,1769151038456,-525.29097459,0.00015866,2]
[403093144,1769151038465,-500.0,0.00015866,2]
[403093145,1769151038474,-500.0,0.00015866,2]
[403093146,1769151038484,-500.0,0.00015866,2]
[403093147,1769151038493,-500.0,0.00015866,2]
[403093148,1769151038506,-500.0,0.00015866,2]
[403093149,1769151038515,-511.30863973,0.00015866,2]
[403093150,1769151038525,-500.0,0.00015866,2]
[403093151,1769151038535,-179.41357912,0.00015866,2]
[403093152,1769151038544,-506.95,0.00015866,2]
[403093153,1769151038552,-500.0,0.00015867,2]
[403093154,1769151038562,-1000.0,0.00015867,2]
[403093155,1769151038571,-417.5544,0.00015867,2]
[403093156,1769151038580,-33234.7286,0.00015867,2]
[403093157,1769151038590,-500.0,0.00015867,2]
[403093158,1769151038599,-11100.0,0.000159,5]
[403093159,1769151038608,-166.74169576,0.00015921,2]
[403093160,1769151038620,-3122.24920708,0.00015986,2]
[403093161,1769151038636,-3646.70094116,0.00016,2]
[403093162,1769151038646,-1972.44140623,0.00016004,2]
[403093163,1769151038657,-500.52951477,0.00016016,2]
[403093164,1769151038667,-500.0,0.00016073,2]
[403093165,1769151038677,-500.0,0.00016073,2]
[403093166,1769151038686,-500.0,0.00016073,2]
[403093167,1769151038697,-500.0,0.00016073,2]
[403093168,1769151038706,-500.0,0.00016073,2]
[403093169,1769151038715,-500.0,0.00016073,2]
[403093170,1769151038724,-500.0,0.00016073,2]
[403093171,1769151038734,-500.0,0.00016073,2]
[403093172,1769151038743,-500.0,0.00016073,2]
[403093173,1769151038752,-500.0,0.00016073,2]
[403093174,1769151038762,-500.0,0.00016073,2]
[403093175,1769151038771,-500.0,0.00016073,2]
[403093176,1769151038780,-506.95,0.0001614,2]
[403093177,1769151038790,-166.66,0.00016177,2]
[403093178,1769151038799,-1972.44140623,0.00016241,2]
[403093179,1769151038807,-3122.24920708,0.00016305,2]
[403093180,1769151038816,-175.9,0.00016367,2]
[403093181,1769151038826,-200.0,0.00016371,2]
[403093182,1769151038835,-150.0,0.0001639,2]
[403093183,1769151038844,-250.0,0.00016413,2]
[403093184,1769151038853,-195.0,0.00016413,2]
[403093185,1769151038863,-150.77014404,0.00016413,2]
[403093186,1769151038872,-300.0,0.00016413,2]
[403093187,1769151038881,-506.95,0.00016414,2]
[403093188,1769151038890,-1249.98,0.00016431,2]
[403093190,1769151038903,-500.0,0.00016438,2]
[403093192,1769151038912,-800.0,0.00016438,2]
[403093194,1769151038921,-500.0,0.00016441,2]
[403093196,1769151038932,-500.0,0.00016441,2]
[403093198,1769151038941,-500.0,0.00016441,2]
[403093200,1769151038951,-500.0,0.00016441,2]
[403093202,1769151038961,-500.0,0.00016441,2]
[403093204,1769151038971,-500.0,0.00016441,2]
[403093206,1769151038980,-13878.35239186,0.00016478,2]
[403093208,1769151038990,-1972.44140623,0.00016478,2]
[403093209,1769151038999,-166.66,0.00016491,2]
[403093211,1769151039008,-500.0,0.00016493,2]
[403093213,1769151039018,-500.0,0.00016496,2]
[403093215,1769151039027,-500.0,0.00016496,2]
[403093238,1769151039223,-500.0,0.00016496,2]
[403093240,1769151039242,-500.0,0.00016496,2]
[403093242,1769151039252,-500.0,0.00016496,2]
[403093244,1769151039262,-500.0,0.00016496,2]
[403093246,1769151039271,-500.0,0.00016548,2]
[403093248,1769151039281,-500.0,0.00016551,2]
[403093250,1769151039290,-237.16668933,0.00016551,2]
[403093252,1769151039300,-500.0,0.00016551,2]
[403093254,1769151039310,-396.5190321,0.00016551,2]
[403093256,1769151039319,-500.0,0.00016551,2]
[403093258,1769151039329,-500.0,0.00016551,2]
[403093260,1769151039338,-500.0,0.00016602,2]
[403093262,1769151039347,-200.0,0.00016603,2]
[403093264,1769151039356,-202.65054832,0.00016603,2]
[403093266,1769151039366,-195.0,0.00016603,2]
[403093268,1769151039375,-250.0,0.00016603,2]
[403093270,1769151039384,-300.0,0.00016603,2]
[403093272,1769151039393,-500.0,0.00016605,2]
[403093274,1769151039403,-240.53313232,0.00016605,2]
[403093276,1769151039412,-500.0,0.00016605,2]
[403093278,1769151039421,-500.0,0.00016605,2]
[403093280,1769151039430,-441.17928962,0.00016621,2]
[403093282,1769151039439,-155.21494006,0.00016621,2]
[403093284,1769151039449,-623.19343284,0.00016621,2]
[403093286,1769151039458,-1001.25276269,0.00016621,2]
[403093288,1769151039467,-1002.26415758,0.00016621,2]
[403093290,1769151039476,-232.80251335,0.00016621,2]
[403093292,1769151039485,-966.91823128,0.00016621,2]
[403093294,1769151039493,-1000.0,0.00016621,2]
[403093296,1769151039502,-1002.07398629,0.00016621,2]
[403093297,1769151039511,-575.29799972,0.00016621,2]
[403093300,1769151039521,-1001.10586278,0.00016621,2]
[403093302,1769151039530,-1000.0,0.00016621,2]
[403093303,1769151039539,-3122.24920708,0.00016624,2]
[403093305,1769151039548,-500.0,0.00016657,2]
[403093307,1769151039558,-500.0,0.0001666,2]
[403093309,1769151039567,-500.0,0.0001666,2]
[403093311,1769151039576,-500.0,0.0001666,2]
[403093313,1769151039585,-157.68,0.00016664,2]
[403093315,1769151039594,-506.95,0.00016688,2]
[403093318,1769151039604,-500.0,0.00016712,2]
[403093320,1769151039615,-500.0,0.00016715,2]
[403093321,1769151039627,-500.0,0.00016715,2]
[403093323,1769151039636,-500.0,0.00016715,2]
[403093325,1769151039645,-13878.35239186,0.00016715,2]
[403093327,1769151039655,-1972.44140623,0.00016715,2]
[403093329,1769151039664,-503.6669669,0.00016767,2]
[403093331,1769151039673,-500.0,0.0001677,2]
[403093333,1769151039682,-500.0,0.0001677,2]
[403093335,1769151039692,-350.0,0.0001677,2]
[403093337,1769151039701,-200.0,0.00016792,2]
[403093339,1769151039710,-415.0,0.000168,2]
[403093341,1769151039719,-500.0,0.00016825,2]
[403093343,1769151039728,-500.0,0.00016825,2]
[403093345,1769151039738,-500.0,0.00016879,2]
[403093347,1769151039747,-509.68602763,0.00016879,2]
[403093349,1769151039756,-312.56390108,0.00016885,2]
[403093351,1769151039766,-11263.09779402,0.000169,2]
[403093353,1769151039775,-329.26,0.0001693,2]
[403093355,1769151039786,-500.0,0.00016934,2]
[403093357,1769151039795,-3122.24920708,0.00016943,2]
[403093359,1769151039805,-13878.35239186,0.00016952,2]
[403093361,1769151039814,-1972.44140623,0.00016952,2]
[403093363,1769151039823,-506.95,0.00016962,2]
[403093365,1769151039832,-500.0,0.00016989,2]
[403093368,1769151039841,-510.0,0.0001699,2]
[403093370,1769151039851,-363.05213651,0.00017044,2]
[403093372,1769151039860,-3240.0,0.00017087,2]
[403093374,1769151039869,-500.0,0.00017099,2]
[403093376,1769151039879,-500.0,0.00017099,2]
[403093378,1769151039888,-500.0,0.00017099,2]
[403093380,1769151039897,-500.0,0.00017099,2]
[403093382,1769151039906,-500.0,0.00017099,2]
[403093384,1769151039916,-500.0,0.00017099,2]
[403093386,1769151039925,-500.0,0.00017099,2]
[403093388,1769151039934,-500.0,0.00017099,2]
[403093390,1769151039943,-500.0,0.00017099,2]
[403093392,1769151039953,-500.0,0.00017099,2]
[403093394,1769151039963,-500.0,0.00017099,2]
[403093396,1769151039972,-854.2589148,0.00017099,2]
[403093398,1769151039981,-500.0,0.00017099,2]
[403093400,1769151039991,-500.0,0.00017099,2]
[403093402,1769151040000,-500.0,0.00017099,2]
[403093404,1769151040009,-500.0,0.00017099,2]
[403093406,1769151040018,-500.0,0.00017099,2]
[403093408,1769151040027,-500.0,0.00017099,2]
[403093410,1769151040036,-500.0,0.00017099,2]
[403093412,1769151040045,-500.0,0.00017099,2]
[403093414,1769151040055,-500.0,0.00017099,2]
[403093417,1769151040064,-500.0,0.00017099,2]
[403093420,1769151040073,-500.0,0.00017099,2]
[403093422,1769151040082,-2567.0,0.00017099,2]
[403093424,1769151040091,-250.0,0.00017099,2]
[403093426,1769151040100,-250.0,0.00017099,2]
[403093428,1769151040109,-250.0,0.00017099,2]
[403093430,1769151040119,-250.0,0.00017099,2]
[403093432,1769151040127,-250.0,0.00017099,2]
[403093434,1769151040136,-305.70455507,0.00017099,2]
[403093436,1769151040145,-151.0,0.00017099,2]
[403093438,1769151040154,-151.0,0.00017099,2]
[403093440,1769151040163,-151.0,0.00017099,2]
[403093442,1769151040172,-151.0,0.00017099,2]
[403093444,1769151040181,-151.0,0.00017099,2]
[403093446,1769151040190,-151.0,0.00017099,2]
[403093448,1769151040199,-151.0,0.00017099,2]
[403093450,1769151040209,-151.0,0.00017099,2]
[403093452,1769151040218,-151.0,0.00017099,2]
[403093454,1769151040228,-151.0,0.00017099,2]
[403093456,1769151040238,-151.0,0.00017099,2]
[403093458,1769151040247,-500.0,0.00017099,2]
[403093460,1769151040256,-500.0,0.00017099,2]
[403093462,1769151040266,-500.0,0.00017099,2]
[403093464,1769151040275,-500.0,0.00017099,2]
[403093466,1769151040284,-500.0,0.00017099,2]
[403093468,1769151040294,-500.0,0.00017099,2]
[403093470,1769151040303,-500.0,0.00017099,2]
[403093472,1769151040312,-500.0,0.00017099,2]
[403093474,1769151040321,-500.0,0.00017099,2]
[403093475,1769151040331,-500.0,0.00017099,2]
[403093477,1769151040340,-500.0,0.00017099,2]
[403093479,1769151040349,-200.0,0.00017131,2]
[403093481,1769151040358,-13878.35239186,0.00017189,2]
[403093483,1769151040367,-1972.44140623,0.00017189,2]
[403093485,1769151040376,-1680.0,0.0001722,2]
[403093487,1769151040385,-506.96850436,0.00017236,2]
[403093489,1769151040394,-150.0,0.0001726,2]
[403093491,1769151040403,-1000.0,0.0001726,2]
[403093493,1769151040412,-3122.24920708,0.00017262,2]
[403093495,1769151040422,-658.0,0.00017275,2]
[403093497,1769151040431,-16700.0,0.000173,6]
[403093499,1769151040439,-658.0,0.0001739,2]
[403093501,1769151040449,-22200.0,0.000174,6]
[403093503,1769151040458,-13878.35239186,0.00017426,2]
[403093505,1769151040467,-1972.44140623,0.00017426,2]
[403093507,1769151040477,-200.0,0.00017444,2]
[403093509,1769151040486,-200.0,0.00017452,2]
[403093511,1769151040496,-27800.0,0.000175,6]
[403093513,1769151040505,-658.0,0.00017507,2]
[403093515,1769151040514,-1000.0,0.00017534,2]
[403093517,1769151040523,-3122.24920708,0.00017581,2]
[403093519,1769151040532,-5500.0,0.000176,6]
[403093521,1769151040542,-3475.0,0.00017616,2]
[403093523,1769151040551,-615.0,0.00017616,2]
[403093525,1769151040560,-1395.082,0.00017616,2]
[403093527,1769151040569,-185.251,0.00017616,2]
[403093529,1769151040579,-919.18,0.00017616,2]
[403093531,1769151040588,-1207.637,0.00017616,2]
[403093533,1769151040597,-4829.0,0.00017616,2]
[403093535,1769151040606,-567.0,0.00017616,2]
[403093537,1769151040616,-6567.0,0.00017616,2]
[403093539,1769151040629,-5888.0,0.00017632,2]
[403093541,1769151040638,-5268.7845693,0.0001764,2]
[403093543,1769151040647,-405.61567575,0.00017647,2]
[403093545,1769151040657,-13878.35239186,0.00017663,2]
[403093547,1769151040667,-1972.44140623,0.00017663,2]
[403093549,1769151040676,-200.0,0.00017671,2]
[403093550,1769151040685,-8940.29801755,0.00017674,2]
[403093551,1769151040695,-658.0,0.00017687,2]
[403093552,1769151040704,-200.0,0.00017697,2]
[403093553,1769151040713,-500.0,0.00017699,2]
[403093554,1769151040723,-500.0,0.00017699,2]
[403093555,1769151040733,-500.0,0.00017699,2]
[403093556,1769151040743,-1000.0,0.000177,2]
[403093557,1769151040752,-5500.0,0.000177,6]
[403093558,1769151040761,-658.0,0.00017705,2]
[403093559,1769151040770,-150.0,0.00017715,2]
[403093560,1769151040780,-155.67266421,0.0001777,2]
[403093561,1769151040789,-150.0,0.00017777,2]
[403093562,1769151040799,-329.26,0.00017777,2]
[403093563,1769151040808,-257000.0,0.000178,3]
[403093564,1769151040817,-1000.0,0.000178,2]
[403093565,1769151040827,-5500.0,0.000178,6]
[403093566,1769151040836,-500.0,0.00017808,2]
[403093567,1769151040845,-500.0,0.00017808,2]
[403093568,1769151040854,-250.0,0.00017808,2]
[403093569,1769151040863,-1000.0,0.00017808,2]
[403093570,1769151040872,-166.05878,0.0001782,2]
[403093571,1769151040882,-166.05879,0.0001782,2]
[403093572,1769151040891,-200.0,0.00017855,2]
[403093573,1769151040900,-200.0,0.00017856,2]
[403093574,1769151040910,-200.0,0.00017856,2]
[403093575,1769151040919,-500.0,0.00017863,2]
[403093576,1769151040928,-500.0,0.00017863,2]
[403093577,1769151040938,-658.0,0.0001788,2]
[403093579,1769151040947,-824.86108018,0.00017885,2]
[403093582,1769151040957,-1455.15271935,0.00017885,2]
[403093584,1769151040966,-2176.82144118,0.00017885,2]
[403093586,1769151040976,-2945.3094,0.00017885,2]
[403093587,1769151040986,-1000.0,0.00017887,2]
[403093590,1769151040995,-462.73633904,0.0001789,2]
[403093592,1769151041005,-151.0,0.00017897,2]
[403093594,1769151041014,-658.0,0.000179,2]
[403093596,1769151041025,-10000.0,0.000179,2]
[403093598,1769151041034,-13878.35239186,0.000179,2]
[403093600,1769151041044,-1000.0,0.000179,2]
[403093602,1769151041053,-5500.0,0.000179,6]
[403093604,1769151041063,-1385.66176084,0.000179,2]
[403093606,1769151041072,-1972.44140623,0.000179,2]
[403093608,1769151041082,-2691.18983677,0.000179,2]
[403093610,1769151041091,-2427.44573609,0.000179,2]
[403093612,1769151041101,-3122.24920708,0.000179,2]
[403093614,1769151041110,-703.49389554,0.000179,2]
[403093616,1769151041120,-500.0,0.000179,2]
[403093618,1769151041130,-4840.0,0.000179,2]
[403093620,1769151041140,-151.25616091,0.00017918,2]
[403093622,1769151041149,-500.0,0.00017918,2]
[403093624,1769151041159,-157.68,0.00017946,2]
[403093626,1769151041168,-67005.1836357,0.0001795,3]
[403093628,1769151041178,-500.0,0.00017972,2]
[403093630,1769151041187,-500.0,0.00017973,2]
[403093632,1769151041196,-150.0,0.00017973,2]
[403093634,1769151041206,-442.4,0.00017974,2]
[403093636,1769151041216,-462.73633904,0.0001799,2]
[403093638,1769151041225,-462.73633904,0.0001799,2]
[403093640,1769151041235,-3883.3427914,0.00017992,2]
[403093642,1769151041244,-135565.2500101,0.00017994,2]
[403093644,1769151041254,-2150.2138953,0.00017994,2]
[403093646,1769151041263,-427.2744083,0.00017994,2]
[403093648,1769151041273,-658.0,0.00017995,2]
[403093650,1769151041282,-151.0,0.00017997,2]
[403093652,1769151041291,-150.0,0.00017999,2]
[403093654,1769151041301,-150.0,0.00017999,2]
[403093656,1769151041310,-297.78142802,0.00017999,2]
[403093658,1769151041319,-500.0,0.00017999,2]
[403093660,1769151041328,-500.0,0.00017999,2]
[403093662,1769151041338,-500.0,0.00017999,2]
[403093664,1769151041347,-500.0,0.00017999,2]
[403093666,1769151041356,-500.0,0.00017999,2]
[403093668,1769151041366,-500.0,0.00017999,2]
[403093670,1769151041376,-500.0,0.00017999,2]
[403093672,1769151041386,-500.0,0.00017999,2]
[403093674,1769151041395,-500.0,0.00017999,2]
[403093676,1769151041405,-350.82031984,0.00017999,2]
[403093678,1769151041414,-500.0,0.00017999,2]
[403093680,1769151041424,-500.0,0.00017999,2]
[403093682,1769151041433,-500.0,0.00017999,2]
[403093684,1769151041442,-500.0,0.00017999,2]
[403093686,1769151041452,-500.0,0.00017999,2]
[403093688,1769151041461,-500.0,0.00017999,2]
[403093690,1769151041471,-300.0,0.00017999,2]
[403093692,1769151041480,-425.78461427,0.00017999,2]
[403093694,1769151041489,-666.0,0.00017999,2]
[403093696,1769151041499,-300.0,0.00017999,2]
[403093698,1769151041508,-300.0,0.00017999,2]
[403093700,1769151041518,-666.0,0.00017999,2]
[403093702,1769151041527,-300.0,0.00017999,2]
[403093704,1769151041536,-150.0,0.00017999,2]
[403093706,1769151041545,-150.34858054,0.00017999,2]
[403093708,1769151041554,-163866.04301819,0.00018,2]
[403093710,1769151041570,-24845.04712779,0.00018,2]
[403093730,1769151041754,-10397.31809474,0.00018,2]
[403093732,1769151041766,-7831.25575179,0.00018,2]
[403093734,1769151041776,-4617.51286413,0.00018,2]
[403093736,1769151041787,-451.14186505,0.00018,2]
[403093742,1769151041826,-3296.01226809,0.00018,2]
[403093795,1769151042516,-500.0,0.00018,2]
[403093804,1769151042584,-637.25425316,0.00018,2]
[403093806,1769151042596,-325223.53170702,0.00018,2]
[403093808,1769151042606,-7357217.12973332,0.00018,2]
[403093810,1769151042617,-5662.16303448,0.00018,2]
[403093812,1769151042632,-523.34287504,0.00018,2]
[403093815,1769151042643,-342.26322073,0.00018,2]
[403093817,1769151042654,-1070.39820197,0.00018,2]
[403093854,1769151042968,-1.7e-07,0.00018,2]
[403093859,1769151043009,-588.0,0.00018,2]
[403093962,1769151043954,-151.0,0.0001587,2]
[403093963,1769151043965,-1010.0,0.00018,2]
[403093964,1769151044011,-616.98183751,0.00018,2]
[403093965,1769151044022,-2004.87526858,0.00018,2]
[403093966,1769151044033,-1554.87227009,0.00018,2]
[403093967,1769151044069,-1058.32946893,0.00018,2]
[403093968,1769151044080,-621.71764742,0.00018,2]
[403093969,1769151044092,-6742.913408,0.00018,2]
[403093970,1769151044104,-616.6926156,0.00018,2]
[403093971,1769151044115,-5858.51232533,0.00018,2]
[403093972,1769151044126,-334.64227692,0.00018,2]
[403093973,1769151044138,-500.0,0.00018,2]
[403093974,1769151044189,-856.99722207,0.00018,2]
[403093975,1769151044200,-1494.489,0.00018,2]
[403093976,1769151044223,-731.29287033,0.00018,2]
[403093977,1769151044234,-333.44283979,0.00018,2]
[403093983,1769151046414,-2188.81661271,0.00017616,2]
[403094043,1769151575003,-322.89025,0.00015373,2]
[403094044,1769151575028,-193.0,0.00015494,2]
[403094045,1769151575052,-2500.0,0.00015567,2]
[403094046,1769151575080,-1200.0,0.00015615,2]
[403094047,1769151575104,-707.92478768,0.00015665,2]
[403094048,1769151575129,-728.86862188,0.00015665,2]
[403094049,1769151575153,-300.0,0.00015666,2]
[403094050,1769151575179,-234.98421144,0.00015666,2]
[403094054,1769151590370,-7714.332129,0.00015667,2]
[403094078,1769151743642,527.53705539,0.000176,30]
[403094120,1769152173135,-176.85325984,0.00015354,2]
[403094121,1769152173157,-349.42662304,0.00015354,2]
[403094128,1769152232163,-640.38637696,0.00015354,2]
[403094129,1769152232173,-769.4,0.00015501,2]
[403094130,1769152232182,-285.67,0.00015518,2]
[403094131,1769152232191,-1200.0,0.00015566,2]
[403094132,1769152232200,-300.0,0.00015566,2]
[403094133,1769152232210,-23937.51518719,0.00015567,2]
[403094134,1769152232221,-1344.48,0.00015567,2]
[403094135,1769152232277,-19024.74112594,0.00015567,2]
[403094136,1769152232290,-885.66,0.00015567,2]
[403094137,1769152232314,-5988.31758687,0.00015567,2]
[403094138,1769152232324,-300.0,0.00015657,2]
[403094139,1769152232333,-151.0,0.00015658,2]
[403094140,1769152232343,-151.0,0.00015658,2]
[403094141,1769152232352,-151.0,0.00015658,2]
[403094142,1769152232361,-289.58319272,0.00015658,2]
[403094143,1769152232371,-903.31406723,0.00015665,2]
[403094144,1769152232380,-637.76004418,0.00015665,2]
[403094145,1769152232390,-325.97,0.00015666,2]
[403094146,1769152232399,-500.0,0.00015666,2]
[403094147,1769152232407,-436.92329134,0.00015666,2]
[403094148,1769152232416,-500.0,0.00015666,2]
[403094149,1769152232425,-500.0,0.00015666,2]
[403094150,1769152232434,-500.0,0.00015666,2]
[403094151,1769152232443,-500.0,0.00015666,2]
[403094152,1769152232452,-603.20404676,0.00015666,2]
[403094153,1769152232461,-500.0,0.00015666,2]
[403094154,1769152232470,-500.0,0.00015666,2]
[403094155,1769152232479,-500.0,0.00015666,2]
[403094156,1769152232488,-500.0,0.00015666,2]
[403094157,1769152232499,-500.0,0.00015666,2]
[403094158,1769152232508,-500.0,0.00015666,2]
[403094159,1769152232516,-290.53074563,0.00015666,2]
[403094160,1769152232525,-500.0,0.00015666,2]
[403094161,1769152232534,-500.0,0.00015666,2]
[403094162,1769152232543,-500.0,0.00015666,2]
[403094163,1769152232552,-187.28721629,0.00015666,2]
[403094164,1769152232561,-500.0,0.00015765,2]
[403094165,1769152232570,-500.0,0.00015765,2]
[403094166,1769152232579,-500.0,0.00015765,2]
[403094167,1769152232588,-500.0,0.00015765,2]
[403094168,1769152232597,-500.0,0.00015765,2]
[403094169,1769152232605,-238.03196067,0.00015765,2]
[403094170,1769152232614,-500.0,0.00015765,2]
[403094171,1769152232623,-500.0,0.00015765,2]
[403094172,1769152232632,-500.0,0.00015765,2]
[403094173,1769152232640,-500.0,0.00015765,2]
[403094174,1769152232649,-500.0,0.00015765,2]
[403094175,1769152232658,-500.0,0.00015765,2]
[403094176,1769152232667,-500.0,0.00015765,2]
[403094177,1769152232676,-500.0,0.00015765,2]
[403094178,1769152232685,-500.0,0.00015765,2]
[403094179,1769152232694,-500.0,0.00015765,2]
[403094180,1769152232704,-500.0,0.00015765,2]
[403094181,1769152232713,-500.0,0.00015765,2]
[403094182,1769152232722,-500.0,0.00015765,2]
[403094183,1769152232731,-1000.0,0.00015767,2]
[403094184,1769152232740,-2000.0,0.000158,5]
[403094185,1769152232749,-4000.0,0.000159,5]
[403094186,1769152232758,-903.31406717,0.00015913,2]
[403094187,1769152232767,-325.97,0.0001594,2]
[403094188,1769152232776,-637.76004414,0.00015984,2]
[403094189,1769152232786,-200.0,0.00016028,2]
[403094190,1769152232795,-500.0,0.00016073,2]
[403094191,1769152232804,-903.31406717,0.00016162,2]
[403094192,1769152232813,-1000.0,0.00016192,2]
[403094193,1769152232822,-325.98,0.00016214,2]
[403094194,1769152232831,-637.76004414,0.00016304,2]
[403094195,1769152232840,-5983.23150269,0.0001631,2]
[403094196,1769152232848,-45979.79024542,0.00016398,2]
[403094198,1769152232880,-945.87538785,0.00016398,2]
[403094200,1769152232892,-1622.46816344,0.00016398,2]
[403094203,1769152232904,-2141.02208517,0.00016398,2]
[403094225,1769152238370,-2560.38559842,0.00016398,2]
[403094226,1769152238382,-2013.24052534,0.00016398,2]
[403094344,1769152240389,-51403.19799436,0.00016398,2]
[403094345,1769152240399,-903.31406717,0.0001641,2]
[403094346,1769152240409,-1683.0,0.00016416,2]
[403094347,1769152240418,-500.0,0.00016438,2]
[403094348,1769152240429,-500.0,0.00016438,2]
[403094349,1769152240439,-500.0,0.00016438,2]
[403094350,1769152240451,-343.42215253,0.00016438,2]
[403094351,1769152240460,-500.0,0.00016438,2]
[403094352,1769152240469,-500.0,0.00016438,2]
[403094353,1769152240483,-500.0,0.00016438,2]
[403094354,1769152240492,-500.0,0.00016438,2]
[403094355,1769152240501,-500.0,0.00016438,2]
[403094356,1769152240511,-500.0,0.00016438,2]
[403094357,1769152240521,-500.0,0.00016438,2]
[403094358,1769152240532,-500.0,0.00016438,2]
[403094359,1769152240541,-500.0,0.00016438,2]
[403094360,1769152240551,-500.0,0.00016438,2]
[403094361,1769152240560,-500.0,0.00016438,2]
[403094362,1769152240569,-500.0,0.00016438,2]
[403094363,1769152240578,-500.0,0.00016438,2]
[403094364,1769152240587,-500.0,0.00016438,2]
[403094365,1769152240596,-500.0,0.00016438,2]
[403094366,1769152240606,-500.0,0.00016438,2]
[403094367,1769152240616,-5983.23150261,0.00016487,2]
[403094368,1769152240627,-156.95,0.00016522,2]
[403094369,1769152240639,-671.98325058,0.00016621,2]
[403094370,1769152240650,-637.76004414,0.00016623,2]